bitfinex/quotes_SOLUSD_20250520
["timestamp","ask_amount","ask_price","bid_price","bid_amount"]
[1747774020303,18.64964886,168.23,168.16,26.0]
[1747774020685,18.64964886,168.24,168.16,26.0]
[1747774021180,18.64964886,168.24,168.17,3.36632749]
[1747774021386,14.85606641,168.29,168.2,26.0]
[1747774021387,18.64964886,168.28,168.2,26.0]
[1747774021611,18.64964886,168.28,168.22,27.551]
[1747774021784,24.5914195,168.3,168.22,27.551]
[1747774021983,5.94153848,168.31,168.22,27.551]
[1747774022180,32.66000594,168.35,168.23,0.14216157]
[1747774022385,23.38512937,168.37,168.26,26.0]
[1747774022386,6.4501,168.37,168.26,26.0]
[1747774022611,26.72,168.37,168.3,26.0]
[1747774022789,26.72,168.38,168.3,27.6349]
[1747774023599,37.71887735,168.4,168.3,27.6349]
[1747774023600,18.64964886,168.37,168.3,27.6349]
[1747774023917,26.72,168.39,168.3,27.6349]
[1747774024286,35.58467823,168.38,168.3,27.6349]
[1747774024503,18.64964886,168.38,168.3,27.6349]
[1747774024704,5.93930035,168.37,168.3,1.6349]
[1747774025509,5.93930035,168.37,168.3,27.6349]
[1747774025692,18.79181043,168.36,168.3,27.6349]
[1747774026003,18.64964886,168.36,168.3,26.0]
[1747774027113,5.94000594,168.35,168.3,26.0]
[1747774029127,6.4501,168.41,168.3,26.0]
[1747774029415,147.7,168.47,168.33,1.529]
[1747774029416,18.64964886,168.43,168.33,1.529]
[1747774029715,26.72,168.44,168.33,57.089]
[1747774029912,18.64964886,168.43,168.33,57.089]
[1747774030123,18.64964886,168.43,168.34,3.35934686]
[1747774030306,5.93612727,168.46,168.36,26.0]
[1747774030507,18.64964886,168.45,168.36,26.0]
[1747774030712,45.72707191,168.45,168.36,26.0]
[1747774031216,18.64964886,168.43,168.37,3.35934686]
[1747774031723,5.9368321,168.44,168.37,3.35934686]
[1747774032100,24.58617046,168.45,168.37,3.35934686]
[1747774032305,24.58617046,168.45,168.38,26.0]
[1747774032510,5.9365216,168.45,168.38,26.0]
[1747774032918,18.64964886,168.48,168.39,29.56]
[1747774033114,45.72707191,168.48,168.39,29.56]
[1747774033322,5.93577491,168.47,168.39,29.56]
[1747774034016,5.93577491,168.47,168.42,26.0]
[1747774034398,18.64964886,168.5,168.42,26.0]
[1747774035305,45.72707191,168.48,168.42,26.0]
[1747774036212,20.77274615,168.49,168.42,26.0]
[1747774036396,18.64964886,168.48,168.42,26.0]
[1747774036603,45.72707191,168.48,168.42,26.0]
[1747774037318,5.93577491,168.47,168.42,26.0]
[1747774039511,5.9354226,168.48,168.42,26.0]
[1747774039717,5.93436591,168.51,168.46,26.0]
[1747774040827,5.93410706,168.52,168.48,26.0]
[1747774041011,33.01153011,168.52,168.48,26.0]
[1747774041213,18.64964886,168.51,168.48,26.0]
[1747774041431,5.9347181,168.5,168.48,26.0]
[1747774042018,5.9347181,168.5,168.46,26.0]
[1747774043934,5.9347181,168.5,168.48,2.25]
[1747774044712,33.01214115,168.5,168.48,2.25]
[1747774045414,5.9347181,168.5,168.48,2.25]
[1747774045831,33.01214115,168.5,168.48,2.25]
[1747774046037,5.9333096,168.54,168.48,2.25]
[1747774046517,5.9333096,168.54,168.48,3.8401]
[1747774046718,5.93286763,168.56,168.5,26.0]
[1747774046919,5.93286763,168.56,168.52,26.0]
[1747774047114,27.07742305,168.54,168.5,28.25]
[1747774047425,45.72707191,168.51,168.5,2.25]
[1747774047609,18.64964886,168.51,168.5,2.25]
[1747774047809,18.64964886,168.55,168.5,2.25]
[1747774048158,5.62515346,168.62,168.51,8.0746]
[1747774048437,8.31482843,168.77,168.6,18.64964886]
[1747774048610,16.89818049,168.72,168.61,0.73490948]
[1747774048937,16.89818049,168.67,168.59,26.0]
[1747774049147,38.15329027,168.71,168.58,26.0]
[1747774049633,16.89818049,168.66,168.58,26.0]
[1747774049837,16.89818049,168.64,168.57,32.34]
[1747774050137,16.89818049,168.64,168.58,26.0]
[1747774050321,16.89818049,168.65,168.58,26.0]
[1747774050725,16.89818049,168.64,168.58,26.0]
[1747774051119,18.64964886,168.65,168.58,26.0]
[1747774051335,35.54782935,168.65,168.58,26.0]
[1747774051528,18.64964886,168.65,168.58,26.0]
[1747774051727,45.64043382,168.65,168.58,26.0]
[1747774051930,32.92092787,168.63,168.58,26.0]
[1747774052740,45.64043382,168.62,168.56,26.0]
[1747774052936,50.37037035,168.75,168.62,26.0]
[1747774053437,45.64043382,168.71,168.62,26.0]
[1747774053860,26.99078496,168.7,168.62,26.0]
[1747774054018,32.91917006,168.68,168.62,26.0]
[1747774054325,5.9283851,168.68,168.62,26.0]
[1747774054711,32.91917006,168.68,168.62,26.0]
[1747774054937,24.5777582,168.69,168.62,26.0]
[1747774055321,20.73705414,168.78,168.62,26.0]
[1747774055632,18.64964886,168.74,168.62,52.68]
[1747774055833,18.64964886,168.74,168.66,26.0]
[1747774056142,5.92662834,168.73,168.66,26.0]
[1747774056933,18.64964886,168.72,168.66,26.0]
[1747774057259,14.81168303,168.79,168.67,26.0]
[1747774057545,45.64043382,168.78,168.67,26.0]
[1747774057729,45.64043382,168.79,168.67,26.0]
[1747774058042,5.92487261,168.78,168.67,26.0]
[1747774058415,59.59524374,168.8,168.67,26.0]
[1747774058615,5.92445878,168.8,168.68,0.59256298]
[1747774059030,5.92445878,168.8,168.69,1.6047]
[1747774059539,26.99078496,168.79,168.69,1.6047]
[1747774060144,5.92487261,168.78,168.69,1.6047]
[1747774061321,66.37503097,168.8,168.69,1.6047]
[1747774061514,26.99078496,168.79,168.69,1.6047]
[1747774062134,66.37503097,168.8,168.69,1.6047]
[1747774062923,20.73459715,168.8,168.69,1.6047]
[1747774063125,26.66,168.79,168.69,1.6047]
[1747774063447,5.92487261,168.78,168.69,1.6047]
[1747774064145,20.73705414,168.78,168.69,1.6047]
[1747774064527,5.92346878,168.82,168.73,26.0]
[1747774065224,20.73214073,168.82,168.73,26.0]
[1747774066722,47.72292569,168.82,168.73,26.0]
[1747774067345,26.99078496,168.81,168.73,26.0]
[1747774067640,26.99078496,168.79,168.73,26.0]
[1747774068052,18.64964886,168.8,168.71,26.0]
[1747774068234,20.73214073,168.82,168.73,26.0]
[1747774068634,47.72292569,168.82,168.73,26.0]
[1747774069243,1.5677,168.87,168.73,26.0]
[1747774069463,5.92206561,168.86,168.73,26.0]
[1747774069634,5.92206561,168.86,168.75,26.0]
[1747774069835,5.92206561,168.86,168.79,26.0]
[1747774070234,14.80132486,168.91,168.8,26.0]
[1747774070561,41.46132486,168.91,168.8,26.0]
[1747774070737,5.92031259,168.91,168.8,26.0]
[1747774070932,32.91109755,168.91,168.8,26.0]
[1747774071144,26.0,168.9,168.73,8.183]
[1747774071349,26.99078496,168.83,168.73,8.183]
[1747774071548,18.64964886,168.83,168.73,8.183]
[1747774071755,5.92171492,168.87,168.76,26.0]
[1747774072063,20.72161675,168.91,168.78,0.14216157]
[1747774072365,5.92031259,168.91,168.78,0.7343071]
[1747774072865,5.91961167,168.93,168.86,26.0]
[1747774073062,5.91961167,168.93,168.87,26.0]
[1747774074866,20.71864085,168.93,168.87,26.0]
[1747774075963,47.70942581,168.93,168.87,26.0]
[1747774076152,47.70942581,168.93,168.84,32.28]
[1747774076153,26.99078496,168.91,168.84,58.28]
[1747774076539,20.71864085,168.93,168.84,58.28]
[1747774076765,47.70942581,168.93,168.84,58.28]
[1747774076964,47.70942581,168.93,168.84,26.0]
[1747774076965,26.99078496,168.89,168.84,26.0]
[1747774077263,26.99078496,168.89,168.79,33.7902]
[1747774077264,26.99078496,168.88,168.79,33.7902]
[1747774077470,5.92171492,168.87,168.82,26.0]
[1747774077668,5.92171492,168.87,168.79,33.7902]
[1747774077967,5.92171492,168.87,168.82,26.0]
[1747774078162,20.72600224,168.87,168.82,26.0]
[1747774078571,5.92171492,168.87,168.82,26.0]
[1747774079252,5.92101367,168.89,168.82,26.0]
[1747774079562,5.91961167,168.93,168.83,18.79181043]
[1747774079767,5.91961167,168.93,168.86,32.4156]
[1747774080069,5.91961167,168.93,168.86,65.0756]
[1747774080367,2.83554985,168.94,168.86,65.0756]
[1747774080562,26.99078496,168.93,168.86,65.0756]
[1747774080953,26.99078496,168.91,168.85,26.0]
[1747774081153,26.99078496,168.9,168.82,6.3187]
[1747774081465,47.71065235,168.92,168.81,32.66]
[1747774081646,26.99078496,168.91,168.81,32.66]
[1747774081851,26.99078496,168.9,168.84,26.0]
[1747774082070,26.99078496,168.89,168.84,26.0]
[1747774082267,26.99078496,168.9,168.84,26.0]
[1747774082573,5.91996211,168.92,168.84,26.0]
[1747774082869,26.99078496,168.91,168.84,26.0]
[1747774083449,5.92066311,168.9,168.84,26.0]
[1747774083954,32.91144807,168.9,168.84,26.0]
[1747774084145,5.92066311,168.9,168.84,26.0]
[1747774084342,5.92066311,168.9,168.81,32.66]
[1747774084767,5.92066311,168.9,168.84,26.0]
[1747774086164,26.99078496,168.88,168.81,32.66]
[1747774086451,26.64,168.89,168.81,26.0]
[1747774086646,26.99078496,168.88,168.79,1.5302]
[1747774087050,26.64,168.89,168.81,26.0]
[1747774087249,53.63078496,168.89,168.81,26.0]
[1747774087569,26.64,168.89,168.81,26.0]
[1747774087874,32.56114065,168.89,168.81,26.0]
[1747774089279,59.55192561,168.89,168.81,26.0]
[1747774089993,32.56114065,168.89,168.81,26.0]
[1747774090148,59.55192561,168.89,168.81,26.0]
[1747774090871,5.92171492,168.87,168.81,26.0]
[1747774091055,5.92139119,168.88,168.81,26.0]
[1747774091263,26.99078496,168.87,168.81,26.0]
[1747774092147,26.99078496,168.84,168.76,2.90874487]
[1747774092346,20.72480189,168.88,168.76,2.90874487]
[1747774092551,26.99078496,168.87,168.79,26.0]
[1747774092960,5.92206561,168.86,168.79,26.0]
[1747774095879,5.92136428,168.88,168.79,26.0]
[1747774096280,5.92113207,168.89,168.79,26.0]
[1747774096652,5.92113207,168.89,168.8,3.30060783]
[1747774097684,5.91961167,168.93,168.8,3.30060783]
[1747774097855,5.91961167,168.93,168.84,26.0]
[1747774098176,2.83554985,168.94,168.85,3.8926263]
[1747774099172,2.83554985,168.94,168.86,3.30060783]
[1747774099483,2.83554985,168.94,168.9,26.0]
[1747774100395,2.83554985,168.94,168.9,27.6642]
[1747774101976,2.83554985,168.94,168.9,33.9399]
[1747774105363,2.83554985,168.94,168.9,27.6642]
[1747774106080,35.74563482,168.94,168.9,26.0]
[1747774106268,29.82633481,168.94,168.9,26.0]
[1747774106670,8.7548391,168.94,168.9,26.0]
[1747774107096,2.83554985,168.94,168.9,26.0]
[1747774107399,8.75484324,168.94,168.9,26.0]
[1747774107603,26.99078496,168.91,168.86,27.6642]
[1747774108294,26.99078496,168.9,168.83,59.26]
[1747774108595,5.92032141,168.91,168.86,26.0]
[1747774108788,32.91110637,168.91,168.86,26.0]
[1747774108968,26.99078496,168.91,168.86,26.0]
[1747774109302,26.99078496,168.9,168.86,26.0]
[1747774109801,9.29194985,168.94,168.86,26.0]
[1747774110002,26.99078496,168.91,168.86,26.0]
[1747774110169,5.9200938,168.92,168.86,26.0]
[1747774110374,26.99078496,168.91,168.86,26.0]
[1747774111398,26.99078496,168.9,168.86,26.0]
[1747774111816,9.29194985,168.94,168.86,26.0]
[1747774112006,2.83554985,168.94,168.86,26.0]
[1747774112298,29.82633481,168.94,168.87,3.3105445]
[1747774112606,35.7456893,168.94,168.87,3.3105445]
[1747774113179,29.82633481,168.94,168.87,3.3105445]
[1747774113374,2.83554985,168.94,168.87,1.6253]
[1747774113677,2.83554985,168.94,168.88,0.59191144]
[1747774113891,2.83554985,168.94,168.92,26.0]
[1747774114398,38.82945425,169.0,168.94,26.0]
[1747774114593,38.82945425,169.0,168.95,32.18]
[1747774114900,65.82023921,169.0,168.95,32.18]
[1747774115404,26.99078496,168.98,168.95,32.18]
[1747774115588,26.99078496,168.98,168.94,26.0]
[1747774115784,26.99078496,168.99,168.94,26.0]
[1747774116099,65.82023921,169.0,168.94,26.0]
[1747774116278,26.99078496,168.99,168.94,26.0]
[1747774116694,71.73743043,169.0,168.94,26.0]
[1747774116892,65.82023921,169.0,168.94,26.0]
[1747774117406,71.73750055,169.0,168.94,26.0]
[1747774117604,26.99078496,168.99,168.92,26.0]
[1747774117901,26.99078496,168.97,168.92,26.0]
[1747774118109,44.74671559,169.0,168.92,26.0]
[1747774118308,26.99078496,168.98,168.92,26.0]
[1747774119103,26.99078496,168.97,168.9,26.0]
[1747774119402,59.53961499,169.0,168.89,32.18]
[1747774119403,26.99078496,168.96,168.89,32.18]
[1747774119605,26.99078496,168.95,168.89,32.18]
[1747774119777,26.99078496,168.95,168.89,26.0]
[1747774119978,26.99078496,168.92,168.86,32.18]
[1747774120286,26.99078496,168.94,168.87,26.0]
[1747774120588,25.17304886,168.98,168.86,32.18]
[1747774120794,26.99078496,168.94,168.86,32.18]
[1747774121174,32.91011167,168.94,168.86,32.18]
[1747774121493,26.99078496,168.91,168.83,1.5116]
[1747774121693,26.99078496,168.91,168.86,26.0]
[1747774122093,26.99078496,168.92,168.83,33.6916]
[1747774122590,26.99078496,168.91,168.86,26.0]
[1747774122886,5.91932671,168.94,168.86,26.0]
[1747774123085,26.99078496,168.91,168.86,26.0]
[1747774123481,26.99078496,168.87,168.79,39.8161]
[1747774123677,26.99078496,168.86,168.79,39.8161]
[1747774124008,26.99078496,168.87,168.82,26.0]
[1747774124186,26.99078496,168.89,168.82,26.0]
[1747774124594,26.62,168.9,168.82,26.0]
[1747774124790,53.61078496,168.9,168.82,26.0]
[1747774125103,26.62,168.9,168.82,26.0]
[1747774125488,26.99078496,168.91,168.82,26.0]
[1747774126508,32.91115864,168.91,168.82,26.0]
[1747774126803,26.99078496,168.87,168.83,3.31313569]
[1747774127009,26.99078496,168.85,168.83,3.31313569]
[1747774127206,32.91336301,168.85,168.83,3.31313569]
[1747774127406,26.99078496,168.85,168.83,3.31313569]
[1747774127909,26.99078496,168.85,168.8,26.0]
[1747774128404,26.99078496,168.86,168.8,26.0]
[1747774128583,32.91253801,168.87,168.8,26.0]
[1747774128999,5.92175305,168.87,168.8,26.0]
[1747774129200,32.91253801,168.87,168.8,26.0]
[1747774129715,5.92136428,168.88,168.8,26.0]
[1747774130015,26.99078496,168.87,168.8,26.0]
[1747774130220,32.91214924,168.88,168.8,26.0]
[1747774130794,5.92136428,168.88,168.8,26.0]
[1747774131000,26.99078496,168.87,168.8,26.0]
[1747774131201,26.99078496,168.88,168.8,26.0]
[1747774131806,26.99078496,168.87,168.8,26.0]
[1747774133714,5.92144467,168.88,168.8,26.0]
[1747774133919,1.5265,168.91,168.8,26.0]
[1747774134094,26.99078496,168.89,168.8,26.0]
[1747774134295,26.99078496,168.86,168.79,32.18]
[1747774134495,26.99078496,168.85,168.82,26.0]
[1747774134818,26.99078496,168.84,168.82,26.0]
[1747774135205,26.99078496,168.84,168.8,3.31350145]
[1747774135823,26.99078496,168.83,168.79,26.0]
[1747774136123,26.99078496,168.81,168.75,1.6515]
[1747774136426,26.99078496,168.82,168.76,26.0]
[1747774138030,32.91441111,168.82,168.76,26.0]
[1747774139114,26.99078496,168.83,168.76,26.0]
[1747774140527,26.99078496,168.84,168.76,26.0]
[1747774141231,6.0401,168.9,168.78,6.371]
[1747774141433,1.5265,168.91,168.82,26.0]
[1747774141734,5.92076491,168.9,168.82,26.0]
[1747774143139,32.91122825,168.91,168.82,26.0]
[1747774143448,5.91961167,168.93,168.83,1.6221]
[1747774143610,5.91932906,168.94,168.86,26.0]
[1747774143930,5.91821033,168.97,168.88,26.0]
[1747774144234,26.99078496,168.95,168.88,26.0]
[1747774144606,32.90969892,168.95,168.88,26.0]
[1747774144806,26.99078496,168.94,168.88,26.0]
[1747774145211,26.99078496,168.95,168.88,26.0]
[1747774146335,32.90977229,168.95,168.88,26.0]
[1747774146543,26.99078496,168.95,168.88,26.0]
[1747774147753,32.909778,168.95,168.88,26.0]
[1747774147951,26.99078496,168.94,168.88,26.0]
[1747774148450,5.91899304,168.95,168.88,26.0]
[1747774148657,26.99078496,168.95,168.88,26.0]
[1747774148826,1.5317,168.99,168.88,26.0]
[1747774148827,5.91750991,168.99,168.88,26.0]
[1747774149128,26.99078496,168.98,168.89,26.62]
[1747774149334,26.99078496,168.98,168.89,29.93189332]
[1747774150014,32.90829487,168.99,168.92,26.0]
[1747774150218,5.91750991,168.99,168.92,26.0]
[1747774150641,38.82945425,169.0,168.94,26.0]
[1747774153623,38.82945425,169.0,168.94,52.62]
[1747774153934,38.82945425,169.0,168.98,26.0]
[1747774154140,38.82945425,169.0,168.98,57.5]
[1747774157353,12.82945455,169.05,168.99,28.2165]
[1747774157535,12.82945455,169.05,169.03,6.6283]
[1747774157863,12.82945455,169.14,169.07,26.0]
[1747774158353,39.82023951,169.14,169.07,26.0]
[1747774158554,12.82945455,169.14,169.07,26.0]
[1747774159127,26.99078496,169.12,169.07,26.0]
[1747774159330,18.7417268,169.14,169.06,26.0]
[1747774159524,12.82945455,169.14,169.08,26.0]
[1747774160626,39.82023951,169.14,169.08,26.0]
[1747774161032,12.82945455,169.14,169.08,26.0]
[1747774163555,26.99078496,169.12,169.07,26.0]
[1747774163723,26.99078496,169.12,169.08,0.5]
[1747774164221,39.82023951,169.14,169.08,0.5]
[1747774164755,12.82945455,169.14,169.08,0.5]
[1747774165050,12.82945455,169.14,169.08,27.1]
[1747774165345,12.82945455,169.14,169.08,0.5]
[1747774165529,12.82945455,169.14,169.08,31.98]
[1747774165530,39.82023951,169.14,169.08,31.98]
[1747774166129,26.99078496,169.13,169.08,31.98]
[1747774166530,26.99078496,169.11,169.08,0.5]
[1747774166851,26.99078496,169.1,169.08,0.5]
[1747774167053,45.7342498,169.09,169.08,0.5]
[1747774167350,45.7342498,169.09,169.02,26.0]
[1747774167524,45.7342498,169.09,168.99,66.3384]
[1747774167729,18.74346484,169.09,168.99,66.3384]
[1747774167929,26.99078496,169.08,169.02,26.0]
[1747774168538,12.82945455,169.09,168.99,66.3384]
[1747774168856,18.74356317,169.09,168.99,66.3384]
[1747774169168,26.99078496,169.07,169.02,26.0]
[1747774169469,18.74356317,169.09,169.03,0.5]
[1747774169470,26.99078496,169.05,169.03,0.5]
[1747774169768,33.52858889,169.09,168.94,1.6426]
[1747774169769,26.99078496,169.04,168.94,1.6426]
[1747774170052,26.99078496,169.01,168.95,58.38]
[1747774170256,26.99078496,169.02,168.95,58.38]
[1747774170553,26.99078496,169.01,168.95,58.38]
[1747774170949,26.99078496,169.01,168.95,84.38]
[1747774171439,26.6,169.05,168.95,84.38]
[1747774171752,26.99078496,169.04,168.98,26.0]
[1747774171942,26.99078496,169.02,168.98,26.0]
[1747774172253,26.99078496,169.02,168.96,26.0]
[1747774172660,26.99078496,169.01,168.96,26.0]
[1747774172844,5.91575958,169.04,168.96,26.0]
[1747774173042,26.99078496,169.0,168.96,26.0]
[1747774173945,20.70515853,169.04,168.97,0.5]
[1747774174149,26.99078496,169.0,168.97,0.5]
[1747774174831,26.99078496,168.99,168.97,0.5]
[1747774175059,26.99078496,168.98,168.97,0.5]
[1747774175829,26.99078496,169.0,168.97,0.5]
[1747774176167,5.91654402,169.02,168.97,0.5]
[1747774176464,26.99078496,169.01,168.97,0.5]
[1747774176635,6.3596,169.03,168.97,0.5]
[1747774176636,32.90829996,168.99,168.97,0.5]
[1747774176959,26.99078496,168.98,168.97,0.5]
[1747774177357,6.3596,169.03,168.97,0.5]
[1747774177535,26.99078496,169.01,168.97,0.5]
[1747774178237,5.91645959,169.02,168.97,0.5]
[1747774178238,26.99078496,168.99,168.97,0.5]
[1747774178456,5.91645959,169.02,168.97,0.5]
[1747774178687,26.99078496,169.0,168.97,0.5]
[1747774178839,26.99078496,168.99,168.97,0.5]
[1747774179240,5.91645959,169.02,168.97,0.5]
[1747774179441,16.39788893,169.06,168.97,0.5]
[1747774179640,26.99078496,169.02,168.97,0.5]
[1747774179862,5.91540964,169.05,168.97,0.5]
[1747774180230,26.99078496,169.04,168.97,0.5]
[1747774180756,32.90594391,169.06,168.97,83.0]
[1747774180932,32.90594391,169.06,168.98,31.78]
[1747774181343,26.99078496,169.05,168.98,31.78]
[1747774181546,5.91515895,169.06,168.98,114.28]
[1747774181762,32.90594391,169.06,168.98,114.28]
[1747774181960,6.5535,169.07,168.98,140.28]
[1747774182159,26.99078496,169.07,168.98,141.9316]
[1747774182556,32.90523139,169.08,169.01,26.0]
[1747774183571,26.99078496,169.07,169.01,26.0]
[1747774184168,12.82945455,169.09,169.01,26.0]
[1747774184369,45.73432785,169.09,169.01,26.0]
[1747774184564,26.99078496,169.08,169.01,26.0]
[1747774184754,26.99078496,169.06,169.01,26.0]
[1747774185272,39.82023951,169.09,169.01,26.0]
[1747774185457,26.99078496,169.08,169.01,26.0]
[1747774185656,26.99078496,169.06,169.01,26.0]
[1747774186202,26.99078496,169.05,169.01,26.0]
[1747774186345,32.90633179,169.05,169.01,26.0]
[1747774186546,26.99078496,169.02,168.98,57.78]
[1747774186870,26.99078496,169.01,168.98,31.78]
[1747774187044,26.99078496,169.0,168.98,31.78]
[1747774187243,26.99078496,169.0,168.97,26.0]
[1747774187695,26.99078496,169.0,168.94,1.6437]
[1747774187849,26.99078496,168.97,168.9,8.45958665]
[1747774188048,26.99078496,168.98,168.93,26.0]
[1747774188273,26.99078496,168.98,168.9,8.45958665]
[1747774188472,23.1916,169.02,168.93,26.0]
[1747774188671,26.99078496,169.0,168.93,26.0]
[1747774189056,26.99078496,169.01,168.93,26.0]
[1747774189382,26.99078496,169.01,168.92,26.6]
[1747774189588,26.99078496,169.01,168.93,26.0]
[1747774189964,51.93274886,169.07,168.95,26.0]
[1747774190171,26.99078496,168.99,168.95,26.0]
[1747774190407,26.99078496,168.97,168.93,26.0]
[1747774190694,26.99078496,168.97,168.9,26.0]
[1747774190866,26.99078496,168.98,168.91,26.0]
[1747774191297,26.99078496,168.99,168.91,26.0]
[1747774191865,32.51680965,169.01,168.91,26.0]
[1747774192064,26.99078496,168.97,168.91,26.0]
[1747774192399,26.99078496,168.92,168.83,6.6274]
[1747774192695,26.99078496,168.89,168.81,1.5501]
[1747774193201,26.99078496,168.9,168.82,26.0]
[1747774193579,26.99078496,168.89,168.82,26.0]
[1747774194088,18.64964886,168.94,168.81,1.5501]
[1747774194280,26.99078496,168.92,168.82,26.0]
[1747774194482,26.99078496,168.9,168.82,26.0]
[1747774194894,26.99078496,168.91,168.82,26.0]
[1747774195065,18.64964886,168.98,168.83,29.31741659]
[1747774195273,26.99078496,168.96,168.87,26.0]
[1747774195470,26.99078496,168.97,168.88,26.0]
[1747774196364,26.99078496,168.96,168.88,26.0]
[1747774197011,18.64964886,168.98,168.88,26.0]
[1747774197173,26.99078496,168.97,168.88,26.0]
[1747774197373,6.4795,169.0,168.88,32.0257]
[1747774197580,26.99078496,168.97,168.88,32.0257]
[1747774197882,26.99078496,168.96,168.88,26.0]
[1747774198277,24.56734145,168.99,168.88,26.0]
[1747774198504,12.39670453,169.0,168.88,26.0]
[1747774198673,26.99078496,168.96,168.88,26.0]
[1747774198886,26.99078496,168.95,168.88,26.0]
[1747774199288,26.99078496,168.95,168.87,26.0]
[1747774199483,26.99078496,168.96,168.87,26.0]
[1747774200570,26.99078496,168.95,168.87,26.0]
[1747774200932,26.99078496,168.91,168.87,26.0]
[1747774201113,26.99078496,168.88,168.81,1.5501]
[1747774201269,26.99078496,168.83,168.77,2.95775862]
[1747774201471,26.99078496,168.82,168.77,2.95775862]
[1747774201672,26.99078496,168.81,168.77,2.95775862]
[1747774201876,26.99078496,168.8,168.77,2.95775862]
[1747774202197,26.99078496,168.82,168.74,31.92]
[1747774202508,5.92206561,168.86,168.77,26.0]
[1747774202509,24.57171447,168.86,168.77,26.0]
[1747774202723,26.99078496,168.82,168.77,26.0]
[1747774202880,26.99078496,168.81,168.77,26.0]
[1747774203481,26.99078496,168.82,168.74,31.92]
[1747774204182,26.99078496,168.82,168.77,26.0]
[1747774204405,26.99078496,168.81,168.74,31.92]
[1747774204717,26.99078496,168.8,168.77,26.0]
[1747774204916,26.99078496,168.81,168.77,26.0]
[1747774205127,26.99078496,168.83,168.77,26.0]
[1747774205330,18.64964886,168.86,168.77,26.0]
[1747774205484,24.57176485,168.86,168.77,26.0]
[1747774205828,26.99078496,168.84,168.77,26.0]
[1747774206123,24.57176485,168.86,168.77,26.0]
[1747774206124,26.99078496,168.83,168.77,26.0]
[1747774206814,26.99078496,168.85,168.77,26.0]
[1747774207010,32.91257878,168.87,168.77,26.0]
[1747774207200,26.99078496,168.85,168.77,26.0]
[1747774207405,32.91355207,168.84,168.77,26.0]
[1747774207621,26.99078496,168.83,168.76,26.0]
[1747774207809,32.91355207,168.84,168.76,26.0]
[1747774208133,26.99078496,168.85,168.76,26.0]
[1747774209508,26.99078496,168.86,168.76,26.0]
[1747774210107,26.99078496,168.85,168.76,26.0]
[1747774210312,51.56223845,168.87,168.76,26.0]
[1747774210592,26.99078496,168.86,168.76,108.5]
[1747774211138,51.56126063,168.9,168.77,2.25456146]
[1747774211428,26.99078496,168.87,168.8,26.0]
[1747774211715,26.99078496,168.88,168.8,26.0]
[1747774211895,26.99078496,168.87,168.78,26.0]
[1747774212902,32.91252943,168.87,168.78,26.0]
[1747774213101,26.99078496,168.87,168.78,26.0]
[1747774213404,32.91260861,168.87,168.77,27.6622]
[1747774213615,32.91260861,168.87,168.78,26.0]
[1747774213918,5.92066311,168.9,168.78,26.0]
[1747774214120,5.92042371,168.91,168.82,26.0]
[1747774214423,51.56051059,168.92,168.82,26.0]
[1747774215130,51.56051059,168.92,168.84,26.0]
[1747774215317,8.0252,168.95,168.84,26.0]
[1747774215318,32.91044909,168.93,168.84,26.0]
[1747774215641,45.64043382,168.92,168.84,26.0]
[1747774215852,26.99078496,168.92,168.84,26.0]
[1747774216133,26.99078496,168.91,168.84,26.0]
[1747774216426,26.99078496,168.9,168.84,26.0]
[1747774216807,18.64964886,168.89,168.84,26.0]
[1747774217319,26.99078496,168.9,168.84,26.0]
[1747774217320,32.9116477,168.9,168.84,26.0]